[Event "World Junior U20 Girls 2018"]
[Site "Gebze"]
[Date "2018.09.06"]
[Round "2"]
[White "Tsolakidou, Stavroula"]
[Black "Chu, Ruotong"]
[Result "1/2-1/2"]
[ECO "A16"]
[WhiteElo "2393"]
[BlackElo "2199"]
[Annotator "NA"]
[PlyCount "69"]
[EventDate "2018.09.05"]
[EventType "swiss"]
[EventCountry "TUR"]
[SourceTitle "playchess.com"]
[Source "ChessBase"]
[SourceQuality "1"]
[TimeControl "40/5400+30:1800+30"]

1. Nf3 {[%emt 0:00:30]} Nf6 {[%emt 0:01:30]} 2. c4 {[%emt 0:00:00]} g6 {[%emt 0:01:30]} 3. Nc3 {[%emt 0:00:00]} d5 {[%emt 0:00:30]} 4. cxd5 {[%emt 0:00:00]} Nxd5 {[%emt 0:00:00]} 5. h4 {[%emt 0:00:00]} Bg7 {[%emt 0:01:00]} 6. e4 {[%emt 0:00:30]} Nxc3 {[%emt 0:01:30]} 7. dxc3 {[%emt 0:00:30]} Qxd1+ {[%emt 0:00:30]} 8. Kxd1 {[%emt 0:00:00]} Nd7 {[%emt 0:06:30]} 9. Nd4 {[%emt 0:00:00]} Nc5 {[%emt 0:05:30]} 10. f3 {[%emt 0:02:30]} Ne6 {[%emt 0:11:30]} 11. Nb3 {[%emt 0:05:30]} Be5 {[%emt 0:06:30]} 12. Be3 {[%emt 0:06:30]} Bd7 {[%emt 0:19:30]} 13. a4 {[%emt 0:01:30]} h6 {[%emt 0:02:30]} 14. Bf2 {[%emt 0:15:30]} O-O-O {[%emt 0:08:30]} 15. Kc2 {[%emt 0:00:30]} Kb8 {[%emt 0:00:00]} 16. g3 {[%emt 0:05:30]} g5 {[%emt 0:00:00]} 17. Be2 {[%emt 0:02:30]} Rdf8 {[%emt 0:06:30]} 18. Nd2 {[%emt 0:03:30]} Nd8 {[%emt 0:06:33]} 19. Nc4 {[%emt 0:07:30]} Nc6 {[%emt 0:00:05]} 20. b4 {[%emt 0:19:30]} Be6 {[%emt 0:00:13]} 21. Nxe5 {[%emt 0:09:23]} Nxe5 {[%emt 0:00:30]} 22. Bc5 {[%emt 0:00:00]} Re8 {[%emt 0:09:34]} 23. hxg5 {[%emt 0:00:07]} hxg5 {[%emt 0:00:18]} 24. f4 {[%emt 0:00:30]} Rxh1 {[%emt 0:04:28]} 25. Rxh1 {[%emt 0:00:30]} gxf4 {[%emt 0:00:55]} 26. gxf4 {[%emt 0:00:00]} Bc4 {[%emt 0:04:31]} 27. Kd2 {[%emt 0:17:17]} Bxe2 {[%emt 0:00:30]} 28. Kxe2 {[%emt 0:00:00]} Nd7 {[%emt 0:00:30]} 29. Bf2 {[%emt 0:00:35]} f6 {[%emt 0:01:52]} 30. Rh7 {[%emt 0:02:01]} Kc8 {[%emt 0:00:27]} 31. Kf3 {[%emt 0:01:49]} a6 {[%emt 0:00:28]} 32. b5 {[%emt 0:01:17]} Nb6 {[%emt 0:00:29]} 33. Bxb6 {[%emt 0:00:26]} cxb6 {[%emt 0:00:04]} 34. bxa6 {[%emt 0:00:30]} bxa6 {[%emt 0:00:02]} 35. Ke3 {[%emt 0:00:28]} 1/2-1/2

[Event "World Junior U20 Girls 2018"]
[Site "Gebze"]
[Date "2018.09.06"]
[Round "2"]
[White "Zhu, Jiner"]
[Black "Song, Yuxin"]
[Result "1/2-1/2"]
[ECO "B90"]
[WhiteElo "2364"]
[BlackElo "2156"]
[Annotator "NA"]
[PlyCount "101"]
[EventDate "2018.09.05"]
[EventType "swiss"]
[EventCountry "TUR"]
[SourceTitle "playchess.com"]
[Source "ChessBase"]
[SourceQuality "1"]
[TimeControl "40/5400+30:1800+30"]

1. e4 {[%emt 0:00:30]} c5 {[%emt 0:00:30]} 2. Nf3 {[%emt 0:00:30]} d6 {[%emt 0:00:30]} 3. d4 {[%emt 0:00:30]} cxd4 {[%emt 0:00:00]} 4. Nxd4 {[%emt 0:00:00]} Nf6 {[%emt 0:00:00]} 5. Nc3 {[%emt 0:00:00]} a6 {[%emt 0:00:30]} 6. Be3 {[%emt 0:00:00]} e5 {[%emt 0:00:30]} 7. Nf3 {[%emt 0:00:00]} Be7 {[%emt 0:00:30]} 8. Bc4 {[%emt 0:00:00]} O-O {[%emt 0:02:30]} 9. O-O {[%emt 0:00:00]} Be6 {[%emt 0:02:30]} 10. Bb3 {[%emt 0:00:00]} Nc6 $11 {[%emt 0:02:30] LiveBook: 220 Games} 11. Qe2 {[%emt 0:00:00]} Na5 {[%emt 0:05:30]} 12. Rfd1 {[%emt 0:02:30]} Nxb3 {[%emt 0:01:30]} 13. axb3 {[%emt 0:00:30]} Qc7 {[%emt 0:00:30]} 14. Bg5 {[%emt 0:00:30]} Rac8 {[%emt 0:07:30]} 15. Ne1 {[%emt 0:02:30]} Ne8 {[%emt 0:04:30]} 16. Bxe7 {[%emt 0:02:30]} Qxe7 {[%emt 0:00:30]} 17. Qd2 {[%emt 0:07:30]} Qc7 {[%emt 0:09:30]} 18. Nd5 {[%emt 0:04:30]} Bxd5 {[%emt 0:01:30]} 19. Qxd5 {[%emt 0:00:30]} Nf6 {[%emt 0:00:30]} 20. Qd3 {[%emt 0:00:00]} Qc6 {[%emt 0:02:30]} 21. f3 {[%emt 0:04:00]} Rfd8 {[%emt 0:00:30]} 22. c4 {[%emt 0:07:30]} b5 {[%emt 0:02:30]} 23. Kf1 {[%emt 0:00:30]} Ne8 {[%emt 0:04:30]} 24. Rdc1 {[%emt 0:05:30]} Rb8 {[%emt 0:03:30]} 25. Qc3 {[%emt 0:13:30]} b4 {[%emt 0:07:30]} 26. Qd2 {[%emt 0:00:30]} Nc7 {[%emt 0:00:30]} 27. Nc2 {[%emt 0:01:30]} Qc5 {[%emt 0:00:30]} 28. Ra4 {[%emt 0:03:30]} a5 {[%emt 0:00:30]} 29. Rca1 {[%emt 0:00:30]} Ra8 {[%emt 0:00:30]} 30. R1a2 {[%emt 0:07:30]} f5 {[%emt 0:05:30]} 31. Qe2 {[%emt 0:07:30]} Re8 {[%emt 0:06:30]} 32. exf5 {[%emt 0:03:30]} d5 {[%emt 0:00:30]} 33. Ra1 {[%emt 0:00:00]} e4 {[%emt 0:01:30]} 34. fxe4 {[%emt 0:03:00]} dxe4 {[%emt 0:00:30]} 35. Ne3 {[%emt 0:00:30]} Red8 {[%emt 0:00:30]} 36. Re1 {[%emt 0:04:30]} Rd3 {[%emt 0:06:30]} 37. Raa1 {[%emt 0:00:30]} Rxb3 {[%emt 0:01:30]} 38. Rad1 {[%emt 0:02:46]} Qe5 {[%emt 0:04:28]} 39. Rd2 {[%emt 0:00:40]} Qxh2 {[%emt 0:01:48]} 40. c5 {[%emt 0:00:00]} Qh1+ {[%emt 0:00:00]} 41. Kf2 {[%emt 0:03:34]} Qh4+ {[%emt 0:00:44]} 42. Kg1 {[%emt 0:00:30]} Rd3 {[%emt 0:00:30]} 43. Red1 {[%emt 0:00:00]} Qe7 {[%emt 0:02:30]} 44. Rxd3 {[%emt 0:04:00]} exd3 {[%emt 0:00:30]} 45. Rxd3 {[%emt 0:00:30]} Qxc5 {[%emt 0:00:30]} 46. Rd7 {[%emt 0:00:00]} Re8 {[%emt 0:03:30]} 47. Qc4+ {[%emt 0:00:00]} Ne6 {[%emt 0:00:30]} 48. Qe4 {[%emt 0:04:30]} Nc7 {[%emt 0:00:00]} 49. Qc4+ {[%emt 0:00:30]} Ne6 {[%emt 0:00:00]} 50. Qe4 {[%emt 0:11:30]} Nc7 {[%emt 0:00:30]} 51. Qc4+ {[%emt 0:01:30]} 1/2-1/2

[Event "World Junior U20 Girls 2018"]
[Site "Gebze"]
[Date "2018.09.06"]
[Round "2"]
[White "Khomeriki, Nino"]
[Black "Santeramo, Alessia"]
[Result "1-0"]
[ECO "E16"]
[WhiteElo "2313"]
[BlackElo "2124"]
[Annotator "NA"]
[PlyCount "69"]
[EventDate "2018.09.05"]
[EventType "swiss"]
[EventCountry "TUR"]
[SourceTitle "playchess.com"]
[Source "ChessBase"]
[SourceQuality "1"]
[TimeControl "40/5400+30:1800+30"]

1. d4 {[%emt 0:03:30]} Nf6 {[%emt 0:00:30]} 2. c4 {[%emt 0:00:30]} e6 {[%emt 0:00:00]} 3. Nf3 {[%emt 0:01:30]} Bb4+ {[%emt 0:01:00]} 4. Bd2 {[%emt 0:00:30]} Qe7 {[%emt 0:00:00]} 5. Nc3 {[%emt 0:00:00]} O-O {[%emt 0:00:00]} 6. g3 {[%emt 0:00:00]} b6 {[%emt 0:00:30]} 7. Bg2 {[%emt 0:00:30]} Bb7 {[%emt 0:00:30]} 8. O-O {[%emt 0:00:30]} d6 {[%emt 0:02:30]} 9. d5 {[%emt 0:24:30]} e5 {[%emt 0:19:30]} 10. Ne1 {[%emt 0:07:30]} Nbd7 {[%emt 0:03:30]} 11. e4 {[%emt 0:17:30]} Nc5 {[%emt 0:01:30]} 12. Qe2 $11 {[%emt 0:02:30]} Bc8 {[%emt 0:08:30]} 13. Nd3 {[%emt 0:02:30]} Nxd3 {[%emt 0:06:30]} 14. Qxd3 {[%emt 0:00:30]} Nd7 {[%emt 0:00:30]} 15. Nb1 {[%emt 0:15:30]} Nc5 {[%emt 0:02:30]} 16. Qc2 {[%emt 0:00:30]} Bxd2 {[%emt 0:01:30]} 17. Nxd2 {[%emt 0:00:30]} a5 {[%emt 0:00:00]} 18. f4 {[%emt 0:04:06]} exf4 {[%emt 0:25:00]} 19. gxf4 {[%emt 0:01:17]} Bg4 {[%emt 0:00:30]} 20. Rae1 {[%emt 0:01:01]} Rae8 {[%emt 0:02:30]} 21. Qc3 {[%emt 0:01:20]} Qh4 {[%emt 0:02:30]} 22. b3 {[%emt 0:01:40]} f5 {[%emt 0:03:03]} 23. e5 {[%emt 0:00:47]} dxe5 {[%emt 0:01:14]} 24. fxe5 {[%emt 0:01:43]} f4 {[%emt 0:00:11]} 25. Nf3 {[%emt 0:07:59]} Bxf3 {[%emt 0:01:43]} 26. Bxf3 {[%emt 0:03:25]} Rf5 {[%emt 0:03:45]} 27. Kh1 {[%emt 0:00:06]} Qh3 {[%emt 0:02:41]} 28. d6 {[%emt 0:01:03]} Ne6 {[%emt 0:03:00]} 29. d7 {[%emt 0:00:28]} Rd8 {[%emt 0:00:53]} 30. Qd2 {[%emt 0:01:02]} Rxe5 {[%emt 0:00:53]} 31. Bg2 {[%emt 0:00:01]} Qf5 {[%emt 0:07:18]} 32. Rxe5 {[%emt 0:01:10]} Qxe5 {[%emt 0:00:10]} 33. Re1 {[%emt 0:00:13]} Qd6 {[%emt 0:01:38]} 34. Qxd6 {[%emt 0:00:30]} cxd6 {[%emt 0:00:30]} 35. Bd5 {[%emt 0:00:05]} 1-0

[Event "World Junior U20 Girls 2018"]
[Site "Gebze"]
[Date "2018.09.06"]
[Round "2"]
[White "Sieber, Fiona"]
[Black "Kyrkjebo, Marte B"]
[Result "1-0"]
[ECO "C78"]
[WhiteElo "2277"]
[BlackElo "1935"]
[Annotator "NA"]
[PlyCount "97"]
[EventDate "2018.09.05"]
[EventType "swiss"]
[EventCountry "TUR"]
[SourceTitle "playchess.com"]
[Source "ChessBase"]
[SourceQuality "1"]
[TimeControl "40/5400+30:1800+30"]

1. e4 {[%emt 0:00:30]} e5 {[%emt 0:00:30]} 2. Nf3 {[%emt 0:00:30]} Nc6 {[%emt 0:00:00]} 3. Bb5 {[%emt 0:00:00]} a6 {[%emt 0:00:00]} 4. Ba4 {[%emt 0:00:00]} Nf6 {[%emt 0:00:00]} 5. O-O {[%emt 0:00:00]} b5 {[%emt 0:00:00]} 6. Bb3 {[%emt 0:00:00]} Bc5 {[%emt 0:00:30]} 7. a4 {[%emt 0:00:00]} Bb7 {[%emt 0:11:30]} 8. d3 {[%emt 0:00:00]} d6 {[%emt 0:00:30]} 9. Nc3 {[%emt 0:02:30]} b4 {[%emt 0:07:30]} 10. Nd5 {[%emt 0:10:30]} h6 {[%emt 0:10:30]} 11. Ne3 {[%emt 0:08:30] C78: Ruy Lopez: Archangelsk and Möller Defences} (11. a5 O-O 12. Be3 Nd7 13. Qd2 Kh7 14. c3 Bxe3 15. fxe3 Nc5 16. Bc2 b3 17. Bb1 Rb8 18. d4 Nd7 {1-0 (43) Caruana,F (2781)-Sokolov,I (2663) Wijk aan Zee 2013 CBM 153 [Marin,M]}) 11... Ne7 $146 {[%emt 0:08:30]} ({Predecessor:} 11... Na5 12. Ba2 Bxe3 13. Bxe3 O-O 14. c3 Nc6 15. Bd2 a5 16. Bc4 Ba6 17. Qb3 bxc3 18. Bxc3 Rb8 19. Qa2 Nb4 {½-½ (19) Kelemen,G-Deli,F Fuzesabony 1994}) 12. a5 {[%emt 0:04:30]} O-O {[%emt 0:02:30]} 13. Re1 {[%emt 0:05:30]} Ng6 {[%emt 0:03:30]} 14. h3 {[%emt 0:16:30]} Re8 {[%emt 0:04:30]} 15. Ba4 {[%emt 0:06:30]} c6 {[%emt 0:07:30]} 16. Nc4 {[%emt 0:03:30]} Qc7 {[%emt 0:05:30]} 17. Be3 {[%emt 0:04:30]} Bxe3 {[%emt 0:05:30]} 18. Nxe3 {[%emt 0:00:30]} Red8 {[%emt 0:03:30]} 19. Nc4 {[%emt 0:05:30]} Nd7 {[%emt 0:02:30]} 20. Qe2 {[%emt 0:06:30]} Nc5 {[%emt 0:06:28]} 21. Qe3 {[%emt 0:06:34]} Nxa4 {[%emt 0:04:20]} 22. Rxa4 {[%emt 0:00:02]} c5 {[%emt 0:00:03]} 23. Raa1 {[%emt 0:00:20]} Rf8 {[%emt 0:02:33]} 24. c3 {[%emt 0:02:49]} bxc3 {[%emt 0:01:27]} 25. bxc3 {[%emt 0:00:02]} f5 {[%emt 0:00:36]} 26. Rab1 {[%emt 0:02:59]} fxe4 {[%emt 0:04:34]} 27. dxe4 {[%emt 0:00:02]} Nf4 {[%emt 0:00:50]} 28. Nxd6 {[%emt 0:07:30]} Qxd6 {[%emt 0:01:46]} 29. Rxb7 {[%emt 0:00:02]} Qg6 {[%emt 0:00:12]} 30. Nh4 {[%emt 0:00:40]} Qh5 {[%emt 0:01:50]} 31. Nf5 {[%emt 0:01:29]} Ne6 {[%emt 0:01:18]} 32. Qg3 {[%emt 0:01:04]} Rf7 {[%emt 0:01:31]} 33. Rxf7 {[%emt 0:00:30]} Kxf7 {[%emt 0:00:30]} 34. Qxe5 {[%emt 0:00:06]} Qg6 {[%emt 0:00:47]} 35. Rb1 {[%emt 0:00:42]} Rd8 {[%emt 0:01:48]} 36. Rb7+ {[%emt 0:02:27]} Kf8 {[%emt 0:00:26]} 37. Re7 {[%emt 0:01:14]} Re8 {[%emt 0:01:44]} 38. Qd6 {[%emt 0:01:54]} Rxe7 {[%emt 0:00:37]} 39. Nxe7 {[%emt 0:01:13]} Qxe4 {[%emt 0:00:29]} 40. Nd5+ {[%emt 0:00:00]} Kg8 {[%emt 0:00:00]} 41. Ne3 {[%emt 0:05:51]} Nf4 {[%emt 0:12:11]} 42. Qxa6 $18 {[%emt 0:00:30]} Qb1+ {[%emt 0:01:16]} 43. Kh2 {[%emt 0:01:30]} Nd3 {[%emt 0:00:51]} 44. Qc8+ {[%emt 0:01:30]} Kh7 {[%emt 0:00:48]} 45. Qf5+ {[%emt 0:00:30]} Kh8 {[%emt 0:00:30]} 46. Qf8+ {[%emt 0:00:30]} Kh7 {[%emt 0:00:30]} 47. Nf5 {[%emt 0:00:30]} Qb7 {[%emt 0:00:30]} 48. Ne7 {[%emt 0:04:30]} h5 {[%emt 0:03:21]} 49. Qf5+ {[%emt 0:00:00]} 1-0

[Event "World Junior U20 Girls 2018"]
[Site "Gebze"]
[Date "2018.09.06"]
[Round "2"]
[White "Sliwicka, Alicja"]
[Black "Bai, Xue"]
[Result "1-0"]
[ECO "C10"]
[WhiteElo "2272"]
[BlackElo "2073"]
[Annotator "NA"]
[PlyCount "69"]
[EventDate "2018.09.05"]
[EventType "swiss"]
[EventCountry "TUR"]
[SourceTitle "playchess.com"]
[Source "ChessBase"]
[SourceQuality "1"]
[TimeControl "40/5400+30:1800+30"]

1. e4 {[%emt 0:00:30]} e6 {[%emt 0:00:30]} 2. d4 {[%emt 0:00:00]} d5 {[%emt 0:00:30]} 3. Nc3 {[%emt 0:00:00]} dxe4 {[%emt 0:00:00]} 4. Nxe4 {[%emt 0:00:30]} Nd7 {[%emt 0:00:00]} 5. Bd3 {[%emt 0:05:30]} Ngf6 {[%emt 0:00:30]} 6. Ne2 {[%emt 0:01:30]} c5 {[%emt 0:05:30]} 7. O-O {[%emt 0:09:30]} Be7 {[%emt 0:06:30]} 8. c3 $11 {[%emt 0:01:30]} O-O {[%emt 0:05:30]} 9. Qc2 {[%emt 0:00:30]} Nxe4 {[%emt 0:03:30]} 10. Bxe4 {[%emt 0:00:30]} Nf6 {[%emt 0:00:30]} 11. Bf3 {[%emt 0:00:30]} cxd4 {[%emt 0:12:30]} 12. Nxd4 {[%emt 0:01:30]} Qc7 {[%emt 0:01:30]} 13. Be3 {[%emt 0:05:30]} Bd7 {[%emt 0:01:30]} 14. a4 {[%emt 0:08:30]} Nd5 {[%emt 0:23:30]} 15. Bxd5 {[%emt 0:04:30]} exd5 {[%emt 0:00:30]} 16. Rfd1 {[%emt 0:02:30]} Bf6 {[%emt 0:04:00]} 17. Nb5 {[%emt 0:03:30]} Qc4 {[%emt 0:14:30]} 18. Qd3 {[%emt 0:05:30]} Qxd3 {[%emt 0:12:30]} 19. Rxd3 {[%emt 0:00:30]} Be6 {[%emt 0:02:15]} 20. Nc7 {[%emt 0:06:00]} Rac8 {[%emt 0:01:04]} 21. Nxd5 {[%emt 0:02:30]} Rfd8 {[%emt 0:02:47]} 22. Rad1 {[%emt 0:05:30]} Bxd5 {[%emt 0:01:29]} 23. Rxd5 {[%emt 0:00:30]} a6 {[%emt 0:00:46]} 24. Bb6 {[%emt 0:03:30]} Rxd5 {[%emt 0:01:06]} 25. Rxd5 {[%emt 0:00:30]} Kf8 {[%emt 0:00:53]} 26. Rd7 {[%emt 0:01:00]} Rc4 {[%emt 0:02:19]} 27. a5 {[%emt 0:00:30]} Ra4 {[%emt 0:00:22]} 28. g3 {[%emt 0:01:30]} Ke8 {[%emt 0:00:37]} 29. Rxb7 {[%emt 0:01:30]} Ra2 {[%emt 0:00:30]} 30. Bc7 {[%emt 0:04:30]} Be7 {[%emt 0:01:53]} 31. b4 {[%emt 0:04:30]} Bf6 {[%emt 0:00:30]} 32. c4 {[%emt 0:01:30]} Bd4 {[%emt 0:01:01]} 33. Bb6 {[%emt 0:00:30]} Bc3 {[%emt 0:00:12]} 34. Bc5 {[%emt 0:02:30]} Bf6 {[%emt 0:00:37]} 35. Ra7 1-0

[Event "World Junior U20 Girls 2018"]
[Site "Gebze"]
[Date "2018.09.06"]
[Round "2"]
[White "Diakonova, Ekaterina"]
[Black "Li, Yunshan"]
[Result "1-0"]
[ECO "B12"]
[WhiteElo "2243"]
[BlackElo "2060"]
[Annotator "NA"]
[PlyCount "119"]
[EventDate "2018.09.05"]
[EventType "swiss"]
[EventCountry "TUR"]
[SourceTitle "playchess.com"]
[Source "ChessBase"]
[SourceQuality "1"]
[TimeControl "40/5400+30:1800+30"]

1. e4 {[%emt 0:00:30]} c6 {[%emt 0:00:30]} 2. d4 {[%emt 0:00:00]} d5 {[%emt 0:00:30]} 3. e5 {[%emt 0:00:00]} c5 {[%emt 0:00:00]} 4. dxc5 {[%emt 0:00:30]} e6 {[%emt 0:00:00]} 5. a3 {[%emt 0:00:00] B12: Caro-Kann: Advance Variation} (5. Nf3 Bxc5 6. Bd3 Ne7 7. O-O Ng6 8. a3 O-O 9. Nbd2 Nc6 10. b4 Bb6 11. Bb2 Nf4 12. Nb3 a5 13. Qd2 Nxd3 14. cxd3 {½-½ (38) Vitiugov,N (2735)-Anand,V (2776) Karlsruhe/Baden-Baden 2018}) 5... Bxc5 {[%emt 0:00:30]} 6. b4 {[%emt 0:01:00]} Bb6 {[%emt 0:00:30]} 7. Nf3 {[%emt 0:00:30]} a5 {[%emt 0:00:30]} 8. b5 {[%emt 0:03:30]} Ne7 {[%emt 0:01:30]} 9. a4 $146 {[%emt 0:08:30]} ({Predecessor:} 9. Bd3 Nd7 10. O-O Ng6 11. Re1 Ndxe5 12. Nxe5 Nxe5 13. Rxe5 {0-1 (23) Ponizil,C (2478)-Rausis,I (2626) Czech Republic 2017}) 9... Nd7 {[%emt 0:00:30]} 10. Ba3 {[%emt 0:03:30]} Bc5 {[%emt 0:04:30]} 11. Bd3 {[%emt 0:10:30]} Ng6 {[%emt 0:07:30]} 12. Bxg6 {[%emt 0:09:30]} hxg6 {[%emt 0:02:30]} 13. c4 {[%emt 0:07:30]} Bxa3 {[%emt 0:11:30]} 14. Nxa3 {[%emt 0:00:30]} Nc5 {[%emt 0:00:30]} 15. O-O {[%emt 0:07:30]} b6 {[%emt 0:01:30]} 16. cxd5 {[%emt 0:02:30]} exd5 {[%emt 0:01:30]} 17. Nc2 {[%emt 0:01:30]} Bf5 {[%emt 0:04:30]} 18. Ncd4 {[%emt 0:03:30]} Be4 {[%emt 0:01:30]} 19. Nc6 {[%emt 0:01:30]} Qd7 {[%emt 0:03:30]} 20. Ng5 {[%emt 0:06:30]} Bd3 {[%emt 0:02:30]} 21. e6 {[%emt 0:08:30]} fxe6 {[%emt 0:02:30]} 22. Re1 {[%emt 0:02:30]} Bf5 {[%emt 0:05:30]} 23. g4 {[%emt 0:05:02]} Be4 {[%emt 0:06:30]} 24. f3 {[%emt 0:00:44]} Qd6 {[%emt 0:03:30]} 25. Ra2 {[%emt 0:01:45]} Bd3 {[%emt 0:11:30]} 26. Ne5 {[%emt 0:02:07]} Qe7 {[%emt 0:09:41]} 27. Nxe6 {[%emt 0:00:57]} Nxe6 {[%emt 0:00:27]} 28. Nxd3 {[%emt 0:01:11]} O-O {[%emt 0:00:25]} 29. Rae2 {[%emt 0:01:35]} Rf6 {[%emt 0:11:56]} 30. g5 {[%emt 0:00:52]} Rxf3 {[%emt 0:00:19]} 31. Rxe6 {[%emt 0:00:05]} Qxg5+ {[%emt 0:00:30]} 32. Kh1 {[%emt 0:00:00]} Raf8 {[%emt 0:00:51]} 33. Re8 {[%emt 0:04:19]} Kh7 {[%emt 0:00:20]} 34. Rxf8 {[%emt 0:01:26]} Rxf8 {[%emt 0:00:04]} 35. Qe2 {[%emt 0:02:56]} Rf6 {[%emt 0:04:20]} 36. Qe5 {[%emt 0:02:02]} Qh4 {[%emt 0:00:37]} 37. Qxd5 {[%emt 0:00:37]} Qh3 {[%emt 0:02:08]} 38. Rg1 {[%emt 0:01:28]} Rd6 {[%emt 0:00:53]} 39. Nf4 {[%emt 0:00:49]} Rxd5 {[%emt 0:01:12]} 40. Nxh3 {[%emt 0:00:30]} Rd4 {[%emt 0:00:00]} 41. Ng5+ {[%emt 0:12:28]} Kh6 {[%emt 0:00:17]} 42. Nf7+ {[%emt 0:00:30]} Kh7 {[%emt 0:00:30]} 43. Rc1 {[%emt 0:01:07]} Rxa4 $18 {[%emt 0:01:30]} 44. Rc8 {[%emt 0:01:18]} g5 {[%emt 0:01:30]} 45. Rc6 {[%emt 0:00:05]} Kg8 {[%emt 0:02:30]} 46. Nxg5 {[%emt 0:00:55]} Kf8 {[%emt 0:00:00]} 47. Rxb6 {[%emt 0:02:12]} Rb4 {[%emt 0:03:00]} 48. Rb7 {[%emt 0:02:37]} g6 {[%emt 0:00:30]} 49. Ne6+ {[%emt 0:02:01]} Ke8 {[%emt 0:00:30]} 50. b6 {[%emt 0:00:37]} a4 {[%emt 0:00:30]} 51. Nc5 {[%emt 0:00:47]} a3 {[%emt 0:00:30]} 52. Ra7 {[%emt 0:03:38]} Rxb6 {[%emt 0:00:30]} 53. Rxa3 {[%emt 0:00:01]} Rc6 {[%emt 0:00:30]} 54. Ne4 {[%emt 0:00:33]} Kf7 {[%emt 0:00:30]} 55. Kg2 {[%emt 0:00:05]} Kg7 {[%emt 0:01:30]} 56. Kg3 {[%emt 0:00:52]} Rb6 {[%emt 0:01:30]} 57. Rf3 {[%emt 0:02:22]} Re6 {[%emt 0:01:30]} 58. Ng5 {[%emt 0:01:05]} Re7 {[%emt 0:00:00]} 59. Rc3 {[%emt 0:00:25]} Ra7 {[%emt 0:04:23]} 60. Rc7+ {[%emt 0:00:15]} 1-0

[Event "World Junior U20 Girls 2018"]
[Site "Gebze"]
[Date "2018.09.06"]
[Round "2"]
[White "Maltsevskaya, Aleksandra"]
[Black "Salah, Nadezhda"]
[Result "1/2-1/2"]
[ECO "A49"]
[WhiteElo "2234"]
[BlackElo "1918"]
[Annotator "NA"]
[PlyCount "122"]
[EventDate "2018.09.05"]
[EventType "swiss"]
[EventCountry "TUR"]
[SourceTitle "playchess.com"]
[Source "ChessBase"]
[SourceQuality "1"]
[TimeControl "40/5400+30:1800+30"]

1. Nf3 {[%emt 0:00:30]} Nf6 {[%emt 0:00:30]} 2. g3 {[%emt 0:00:00]} g6 {[%emt 0:00:30]} 3. Bg2 {[%emt 0:00:00]} Bg7 {[%emt 0:00:00]} 4. O-O {[%emt 0:00:00]} O-O {[%emt 0:01:00]} 5. d4 {[%emt 0:00:00]} d6 {[%emt 0:00:30]} 6. b3 {[%emt 0:00:30]} a5 {[%emt 0:01:30]} 7. c4 {[%emt 0:00:30]} a4 {[%emt 0:01:30]} 8. b4 {[%emt 0:00:00]} c5 {[%emt 0:01:30]} 9. bxc5 {[%emt 0:00:00]} dxc5 {[%emt 0:00:00]} 10. Bb2 {[%emt 0:00:30]} Qb6 {[%emt 0:27:00]} 11. Qc1 {[%emt 0:03:30]} Bf5 {[%emt 0:01:30]} 12. Nbd2 {[%emt 0:05:30]} Ne4 {[%emt 0:03:30]} 13. Ba3 {[%emt 0:28:30]} cxd4 {[%emt 0:16:30]} 14. Nxe4 {[%emt 0:04:30]} Bxe4 {[%emt 0:00:30]} 15. Bxe7 {[%emt 0:01:30]} Re8 {[%emt 0:00:30]} 16. c5 {[%emt 0:05:30]} Qc6 {[%emt 0:01:30]} 17. Bd6 {[%emt 0:00:30]} d3 {[%emt 0:01:30]} 18. Re1 {[%emt 0:11:30]} dxe2 {[%emt 0:06:30]} 19. Rxe2 {[%emt 0:01:30]} Nd7 {[%emt 0:05:30]} 20. Rxe4 {[%emt 0:07:30]} Qxe4 {[%emt 0:00:30]} 21. Rb1 {[%emt 0:00:30]} Rad8 {[%emt 0:21:03]} 22. h3 {[%emt 0:06:30]} Qe2 {[%emt 0:01:48]} 23. Rxb7 {[%emt 0:06:47]} Nxc5 {[%emt 0:00:48]} 24. Qxc5 {[%emt 0:00:52]} Qd1+ {[%emt 0:00:30]} 25. Kh2 {[%emt 0:00:30]} Qxd6 {[%emt 0:00:00]} 26. Qc2 {[%emt 0:03:42]} Qa6 {[%emt 0:00:30]} 27. Ng5 {[%emt 0:02:57]} Rf8 {[%emt 0:01:47]} 28. Nxf7 {[%emt 0:04:17]} Rc8 {[%emt 0:02:17]} 29. Qd1 {[%emt 0:05:08]} Qf6 {[%emt 0:02:41]} 30. Nd6 {[%emt 0:00:50]} Rcd8 {[%emt 0:01:22]} 31. Qd5+ {[%emt 0:00:15]} Kh8 {[%emt 0:00:08]} 32. Nf7+ {[%emt 0:00:04]} Rxf7 {[%emt 0:00:45]} 33. Qxf7 {[%emt 0:00:30]} Qxf7 {[%emt 0:00:30]} 34. Rxf7 {[%emt 0:00:30]} h5 {[%emt 0:00:17]} 35. Ra7 {[%emt 0:01:37]} Rd4 {[%emt 0:00:26]} 36. Ra8+ {[%emt 0:00:53]} Kh7 {[%emt 0:00:03]} 37. f4 {[%emt 0:00:06]} h4 {[%emt 0:00:45]} 38. Ra7 {[%emt 0:00:25]} hxg3+ {[%emt 0:00:33]} 39. Kxg3 {[%emt 0:00:03]} Kh6 {[%emt 0:00:39]} 40. Bc6 {[%emt 0:01:02]} Rd3+ {[%emt 0:00:30]} 41. Kg4 {[%emt 0:00:02]} a3 {[%emt 0:01:08]} 42. Be4 {[%emt 0:02:30]} Re3 {[%emt 0:11:11]} 43. Bd5 {[%emt 0:00:30]} Rd3 {[%emt 0:05:08]} 44. Bb3 {[%emt 0:00:30]} Bb2 {[%emt 0:02:17]} 45. Bg8 {[%emt 0:01:30]} Bg7 {[%emt 0:00:30]} 46. Ra6 {[%emt 0:00:00]} Bf8 {[%emt 0:06:11]} 47. Ra7 {[%emt 0:03:00]} Bg7 {[%emt 0:00:02]} 48. Bf7 {[%emt 0:00:30]} Bf8 {[%emt 0:00:25]} 49. Bc4 {[%emt 0:00:30]} Rd4 {[%emt 0:01:04]} 50. Bg8 {[%emt 0:01:30]} g5 {[%emt 0:01:44]} 51. Ra6+ {[%emt 0:02:30]} Bd6 {[%emt 0:00:05]} 52. Kf5 {[%emt 0:00:30]} Rxf4+ {[%emt 0:01:32]} 53. Ke6 {[%emt 0:00:30]} Bb4 {[%emt 0:00:30]} 54. Ke5+ {[%emt 0:01:30]} Kh5 {[%emt 0:01:09]} 55. Be6 {[%emt 0:01:30]} Bc3+ {[%emt 0:00:24]} 56. Kd5 {[%emt 0:00:30]} Bb2 {[%emt 0:00:14]} 57. Bg4+ {[%emt 0:03:19]} Kh4 {[%emt 0:00:19]} 58. Rh6+ {[%emt 0:00:34]} Kg3 {[%emt 0:00:30]} 59. Rg6 {[%emt 0:00:00]} Kh4 {[%emt 0:00:11]} 60. Rh6+ {[%emt 0:00:23]} Kg3 {[%emt 0:00:01]} 61. Rh5 {[%emt 0:00:18]} Bc1 {[%emt 0:00:55]} 1/2-1/2